bitfinex/quotes_BTCUSD_20250826
["timestamp","ask_amount","ask_price","bid_price","bid_amount"]
[1756168547055,0.027342,110020.0,110010.0,0.41395859]
[1756168547275,0.02904931,110020.0,110010.0,0.41395859]
[1756168547497,0.02904931,110020.0,110010.0,0.41295859]
[1756168547720,0.02904931,110020.0,110010.0,0.35898165]
[1756168547944,0.04256505,110020.0,110010.0,0.35898165]
[1756168548168,0.04327236,110020.0,110010.0,0.35898165]
[1756168548384,0.04156505,110020.0,110010.0,0.36098165]
[1756168548811,0.02904931,110020.0,110010.0,0.35898165]
[1756168549039,0.027342,110020.0,110010.0,0.35998165]
[1756168549263,0.02904931,110020.0,110010.0,0.38396483]
[1756168549689,0.027342,110020.0,110010.0,0.38396483]
[1756168549691,0.027342,110020.0,110010.0,0.47084958]
[1756168549909,0.03800036,110040.0,110030.0,0.1817686]
[1756168550132,0.37800036,110040.0,110030.0,0.3552786]
[1756168550344,0.76051879,110040.0,110030.0,0.3532486]
[1756168550581,0.5217686,110030.0,110020.0,0.06992]
[1756168550810,0.52178512,110020.0,110010.0,0.19404173]
[1756168551027,0.52178512,110020.0,110010.0,0.35332165]
[1756168551461,0.34,110020.0,110010.0,0.35847165]
[1756168551668,0.34,110020.0,110010.0,0.35850165]
[1756168551893,0.341,110020.0,110010.0,0.41952559]
[1756168552114,0.35522295,110020.0,110010.0,0.41952559]
[1756168552330,0.35422295,110020.0,110010.0,0.35850165]
[1756168552559,0.35422295,110020.0,110000.0,0.25173778]
[1756168552560,0.53600807,110020.0,110000.0,0.25173778]
[1756168552776,0.52258375,110020.0,110010.0,0.17148]
[1756168552988,0.52258375,110020.0,110010.0,0.35328165]
[1756168553218,0.34047863,110020.0,110010.0,0.35743165]
[1756168553497,0.34047863,110020.0,110010.0,0.39504515]
[1756168553713,0.52226375,110020.0,110010.0,0.33097821]
[1756168553932,0.5394718,110020.0,110010.0,0.17141664]
[1756168554597,0.5394718,110020.0,110010.0,0.35321829]
[1756168555053,1.08130545,110020.0,110010.0,0.35321829]
[1756168555700,1.10896745,110020.0,110010.0,0.001]
[1756168555917,6.17466708,110020.0,110010.0,0.001]
[1756168556364,6.00374708,110020.0,110010.0,0.001]
[1756168556587,6.00354708,110020.0,110010.0,0.001]
[1756168556801,6.17434708,110020.0,110010.0,0.001]
[1756168557032,0.34,110000.0,109990.0,0.3647659]
[1756168557417,0.52181818,110000.0,109990.0,0.3668759]
[1756168557418,0.9622988,110000.0,109990.0,0.17084]
[1756168557617,0.94540673,110000.0,109990.0,0.35778471]
[1756168558215,0.18183471,109990.0,109980.0,0.25177119]
[1756168558429,0.60542326,109990.0,109980.0,0.42257119]
[1756168558673,0.60542326,109990.0,109980.0,0.42557119]
[1756168559136,0.60542326,109990.0,109980.0,0.25477124]
[1756168559359,0.60542326,109990.0,109980.0,0.004]
[1756168559602,0.60542326,109990.0,109980.0,0.001]
[1756168559603,6.01099891,109990.0,109980.0,0.001]
[1756168559828,6.05524071,109990.0,109980.0,0.001]
[1756168560311,6.05524071,109990.0,109980.0,0.002]
[1756168560553,6.50871845,109990.0,109980.0,0.002]
[1756168560768,6.05524071,109990.0,109980.0,0.001]
[1756168560988,0.52186778,109970.0,109960.0,0.17036]
[1756168561241,1.11577633,109970.0,109950.0,0.50416763]
[1756168561466,0.42529586,109960.0,109950.0,0.50716763]
[1756168561679,0.45094455,109960.0,109950.0,0.50716763]
[1756168561908,0.63314887,109960.0,109950.0,0.07293275]
[1756168562151,0.63314887,109960.0,109950.0,0.07307651]
[1756168562360,0.63282887,109960.0,109950.0,0.07307651]
[1756168562781,0.68389782,109960.0,109950.0,0.07307651]
[1756168562985,0.68749892,109960.0,109950.0,0.00054376]
[1756168563225,1.28120747,109960.0,109950.0,0.00054376]
[1756168563451,6.08891347,109960.0,109950.0,0.00054376]
[1756168563663,6.01067222,109960.0,109950.0,0.18244462]
[1756168563871,6.01067222,109960.0,109950.0,0.00054376]
[1756168564105,6.00479868,109960.0,109950.0,0.00054376]
[1756168564327,6.03507294,109960.0,109950.0,0.00054376]
[1756168564534,6.37168591,109960.0,109950.0,0.00269195]
[1756168564780,0.52190086,109950.0,109940.0,0.0004]
[1756168565068,5.86086399,109950.0,109940.0,0.00054388]
[1756168565285,6.03114399,109950.0,109940.0,0.00054388]
[1756168565499,6.00696636,109950.0,109940.0,0.00054388]
[1756168565709,6.06943787,109950.0,109940.0,0.00054388]
[1756168565927,6.06919787,109950.0,109940.0,0.00054388]
[1756168566140,6.00664636,109950.0,109940.0,0.00054388]
[1756168566350,6.03073991,109950.0,109940.0,0.00054388]
[1756168566567,6.03071068,109950.0,109940.0,0.00054388]
[1756168566795,6.03091068,109950.0,109940.0,0.00054388]
[1756168567006,6.08514763,109950.0,109940.0,0.00054388]
[1756168567231,6.37366268,109950.0,109900.0,0.003]
[1756168567452,6.37366268,109950.0,109900.0,0.00014396]
[1756168567453,0.94555561,109910.0,109900.0,0.00014396]
[1756168567690,5.97445373,109910.0,109900.0,0.00014396]
[1756168567902,6.22321179,109910.0,109900.0,0.00014396]
[1756168568115,6.43883485,109910.0,109900.0,0.00014396]
[1756168568331,6.45154909,109910.0,109900.0,0.00014396]
[1756168568556,6.46787859,109910.0,109900.0,0.00014396]
[1756168569022,6.47087859,109910.0,109900.0,0.00014396]
[1756168569230,6.47123859,109910.0,109900.0,0.00014396]
[1756168569443,6.3670081,109910.0,109900.0,0.00014396]
[1756168569657,6.03156424,109910.0,109900.0,0.00014396]
[1756168569885,6.19339594,109910.0,109900.0,0.00014396]
[1756168570109,6.18713041,109910.0,109900.0,0.00014396]
[1756168570320,6.01693041,109910.0,109900.0,0.00014396]
[1756168570534,5.93470022,109910.0,109900.0,0.00014396]
[1756168570751,5.93502022,109910.0,109900.0,0.00014396]
[1756168570972,6.1215113,109910.0,109900.0,0.00014396]
[1756168571401,6.1213113,109910.0,109900.0,0.00014396]
[1756168571600,6.10218022,109910.0,109900.0,0.00014396]
[1756168571809,6.01888987,109910.0,109900.0,0.00014396]
[1756168572024,6.18872987,109910.0,109900.0,0.00114396]
[1756168572450,6.01856987,109910.0,109900.0,0.00114396]
[1756168572687,6.17444795,109910.0,109900.0,0.00114396]
[1756168572899,6.00432795,109910.0,109900.0,0.00114396]
[1756168573317,6.15756834,109910.0,109900.0,0.00114396]
[1756168573543,6.1741419,109910.0,109900.0,0.00114396]
[1756168573766,6.08719225,109910.0,109900.0,0.00414396]
[1756168573974,6.08719216,109910.0,109900.0,0.00314396]
[1756168574398,5.35705106,109910.0,109900.0,0.18723758]
[1756168574604,5.39525961,109910.0,109900.0,0.18823758]
[1756168574820,0.04394598,109910.0,109900.0,0.35815758]
[1756168575055,0.6819197,109940.0,109920.0,0.18193555]
[1756168575265,0.6819197,109940.0,109920.0,0.4244683]
[1756168575266,5.30941331,109930.0,109920.0,0.4244683]
[1756168575467,0.90460353,109950.0,109930.0,0.18404395]
[1756168575679,4.807706,109940.0,109930.0,0.24489517]
[1756168575892,4.85164172,109940.0,109930.0,0.18704395]
[1756168576106,0.04393572,109940.0,109930.0,0.18704395]
[1756168576593,0.027362,109940.0,109930.0,0.18704395]
[1756168576807,0.00930337,109960.0,109940.0,0.18190339]
[1756168577023,0.027356,109950.0,109940.0,0.35182339]
[1756168577233,0.0456455,109950.0,109940.0,0.35693339]
[1756168577878,0.04393819,109950.0,109940.0,0.35693339]
[1756168578079,0.04393819,109950.0,109940.0,0.42693339]
[1756168578285,0.04393819,109950.0,109940.0,0.49072979]
[1756168578702,0.05987784,109950.0,109940.0,0.49072979]
[1756168578937,0.60348547,109950.0,109940.0,0.4269474]
[1756168579143,0.60177816,109950.0,109940.0,0.4269474]
[1756168579348,1.12367902,109950.0,109940.0,0.07711]
[1756168579554,1.12569902,109950.0,109940.0,0.005]
[1756168579972,1.21256867,109950.0,109940.0,0.005]
[1756168580235,1.21572867,109950.0,109940.0,0.005]
[1756168580442,1.12885902,109950.0,109940.0,0.005]
[1756168580668,1.12569902,109950.0,109940.0,0.005]
[1756168580869,1.12569902,109950.0,109940.0,0.002]
[1756168581077,1.12569902,109950.0,109930.0,0.35161395]
[1756168581078,0.1819174,109940.0,109930.0,0.35161395]
[1756168581307,0.74412722,109940.0,109930.0,0.16968]
[1756168581528,1.08412722,109940.0,109930.0,0.16968]
[1756168581738,1.08412722,109940.0,109930.0,0.18193395]
[1756168582147,0.35658219,109940.0,109930.0,0.18904395]
[1756168582349,0.35658219,109940.0,109930.0,0.19204395]
[1756168582570,0.027356,109950.0,109940.0,0.1819174]
[1756168582774,0.02906331,109950.0,109940.0,0.3534674]
[1756168583178,0.02906331,109950.0,109940.0,0.3564674]
[1756168583588,0.027356,109950.0,109940.0,0.3564674]
[1756168584021,0.02906331,109950.0,109940.0,0.3564674]
[1756168584238,0.02906331,109950.0,109940.0,0.24759311]
[1756168584440,1.2545718,109950.0,109930.0,0.24618965]
[1756168584650,1.06723234,109940.0,109930.0,0.1712]
[1756168584866,1.06552503,109940.0,109930.0,0.21272331]
[1756168585090,1.06552503,109940.0,109930.0,0.39465726]
[1756168585337,0.34,109940.0,109930.0,0.39988726]
[1756168585548,0.34,109940.0,109930.0,0.39676726]
[1756168585950,0.34,109940.0,109930.0,0.40176726]
[1756168586157,1.07387024,109940.0,109930.0,0.35613395]
[1756168586375,0.89195284,109940.0,109930.0,0.35824395]
[1756168586798,0.34834521,109940.0,109930.0,0.36136395]
[1756168587923,0.36257918,109940.0,109930.0,0.36136395]
[1756168588134,0.36257918,109940.0,109930.0,0.18693395]
[1756168588342,0.54647658,109940.0,109930.0,0.18693395]
[1756168588552,1.18000386,109940.0,109930.0,0.005]
[1756168588770,1.37444418,109940.0,109930.0,0.005]
[1756168588995,6.09528053,109940.0,109930.0,0.005]
[1756168589203,6.12516972,109940.0,109930.0,0.005]
[1756168589416,6.11921806,109940.0,109930.0,0.005]
[1756168589627,6.11921806,109940.0,109930.0,0.003]
[1756168590048,6.11925806,109940.0,109930.0,0.003]
[1756168590474,6.09532053,109940.0,109930.0,0.003]
[1756168590678,0.52194923,109930.0,109910.0,0.19106334]
[1756168590884,0.72726544,109920.0,109910.0,0.19106334]
[1756168591085,0.72726544,109920.0,109900.0,0.06996]
[1756168591086,0.52196706,109910.0,109900.0,0.06996]
[1756168591302,0.94823927,109910.0,109900.0,0.00014396]
[1756168591507,0.95663099,109910.0,109900.0,0.18212758]
[1756168591756,1.0944518,109910.0,109900.0,0.00014396]
[1756168591974,5.92148701,109910.0,109900.0,0.00014396]
[1756168592184,5.90096518,109910.0,109900.0,0.00014396]
[1756168592405,5.9312032,109910.0,109900.0,0.00214396]
[1756168592632,5.96343313,109910.0,109900.0,0.00214396]
[1756168592901,6.03924209,109910.0,109900.0,0.00014396]
[1756168593112,6.2376834,109910.0,109900.0,0.00014396]
[1756168593975,6.14373734,109910.0,109900.0,1e-08]
[1756168594185,6.19373734,109910.0,109900.0,1e-08]
[1756168594398,6.26384815,109910.0,109900.0,1e-08]
[1756168594601,6.31053757,109910.0,109900.0,0.00400001]
[1756168594804,0.78943264,109900.0,109890.0,0.0004]
[1756168595015,6.38472552,109900.0,109890.0,0.0004]
[1756168595508,0.52204988,109860.0,109850.0,0.07305275]
[1756168595698,5.94122832,109860.0,109850.0,0.07253275]
[1756168595916,6.03114797,109860.0,109850.0,0.07253275]
[1756168596776,6.03114797,109860.0,109850.0,0.07301284]
[1756168597205,5.86274797,109860.0,109850.0,0.07301284]
[1756168597410,6.15086973,109860.0,109850.0,0.00048009]
[1756168597637,5.98238973,109860.0,109850.0,0.00048009]
[1756168597874,6.16491653,109860.0,109850.0,0.00548009]
[1756168598130,6.18921453,109860.0,109850.0,0.00548009]
[1756168598386,6.1114491,109860.0,109850.0,0.00248009]
[1756168598618,6.1114491,109860.0,109850.0,0.00148009]
[1756168599069,6.1144091,109860.0,109850.0,0.00048009]
[1756168599509,6.1144091,109860.0,109850.0,0.00148009]
[1756168600400,1.1365231,109860.0,109850.0,0.18877654]
[1756168600666,1.3044831,109860.0,109850.0,0.18877654]
[1756168600901,6.20408875,109860.0,109850.0,0.00148009]
[1756168601575,6.2040741,109860.0,109850.0,0.00148009]
[1756168602045,6.20407323,109860.0,109850.0,0.00148009]
[1756168602266,6.03611323,109860.0,109850.0,0.00148009]
[1756168602471,6.20399323,109860.0,109850.0,0.00148009]
[1756168602688,6.18974643,109860.0,109850.0,0.00148009]
[1756168603869,6.18962643,109860.0,109850.0,0.00148009]
[1756168604809,6.1896186,109860.0,109850.0,0.00148009]
[1756168605036,6.20894248,109860.0,109850.0,0.00148009]
[1756168605532,6.1896186,109860.0,109850.0,0.00148009]
[1756168606435,6.20386706,109860.0,109850.0,0.00148009]
[1756168606865,6.32300644,109860.0,109850.0,0.00148009]
[1756168607102,6.50918274,109860.0,109850.0,0.00148009]
[1756168607522,6.50918274,109860.0,109850.0,1e-08]
[1756168607949,6.53432472,109860.0,109850.0,1e-08]
[1756168608198,0.60445901,109840.0,109830.0,0.001]
[1756168608427,6.29277639,109840.0,109830.0,0.001]
[1756168608635,6.47571558,109840.0,109830.0,0.001]
[1756168608852,6.48996627,109840.0,109830.0,0.001]
[1756168609067,0.52211619,109820.0,109810.0,0.07253275]
[1756168609293,6.32727188,109820.0,109810.0,8.738e-05]
[1756168609508,6.2502577,109820.0,109810.0,8.738e-05]
[1756168609741,6.43014689,109820.0,109810.0,8.738e-05]
[1756168610159,5.68832373,109820.0,109810.0,8.738e-05]
[1756168610367,6.41443223,109820.0,109810.0,8.738e-05]
[1756168610799,6.42754454,109820.0,109810.0,8.738e-05]
[1756168611055,6.44428924,109820.0,109810.0,0.00108738]
[1756168611679,6.43103471,109820.0,109810.0,0.00108738]
[1756168611878,6.40106552,109820.0,109810.0,8.738e-05]
[1756168612287,6.40006552,109820.0,109810.0,8.738e-05]
[1756168612502,6.40206552,109820.0,109810.0,8.738e-05]
[1756168612907,6.23422552,109820.0,109810.0,8.738e-05]
[1756168613117,6.40194552,109820.0,109810.0,8.738e-05]
[1756168613317,5.98440051,109820.0,109810.0,8.738e-05]
[1756168613528,6.14903051,109820.0,109810.0,8.738e-05]
[1756168613730,6.32947951,109820.0,109810.0,8.738e-05]
[1756168614138,6.3294779,109820.0,109810.0,8.738e-05]
[1756168614347,6.35936709,109820.0,109810.0,0.00308738]
[1756168614561,5.8344479,109820.0,109810.0,0.00519738]
[1756168614793,6.1744479,109820.0,109810.0,0.00519738]
[1756168614978,5.63051393,109820.0,109810.0,0.00519738]
[1756168615191,6.0067679,109820.0,109810.0,0.00519738]
[1756168615390,5.62855393,109820.0,109810.0,0.00835738]
[1756168615598,6.1724879,109820.0,109810.0,0.00835738]
[1756168615830,6.1724879,109820.0,109810.0,0.00619738]
[1756168616313,6.0047679,109820.0,109810.0,0.00935738]
[1756168616518,5.55593652,109820.0,109810.0,0.00935738]
[1756168617420,5.98095901,109820.0,109810.0,0.00935738]
[1756168617594,4.86610033,109820.0,109810.0,0.19149015]
[1756168618030,5.46068998,109820.0,109810.0,0.2640229]
[1756168618238,5.46072753,109820.0,109810.0,0.2640229]
[1756168618446,5.64284372,109820.0,109810.0,0.2630229]
[1756168618694,6.06988621,109820.0,109810.0,8.738e-05]
[1756168618930,6.07293621,109820.0,109810.0,0.00608738]
[1756168619370,6.07293621,109820.0,109810.0,0.00408738]
[1756168619818,6.07293621,109820.0,109810.0,0.00708738]
[1756168620261,5.38825407,109820.0,109810.0,0.00540738]
[1756168620488,5.37387599,109820.0,109810.0,0.18754015]
[1756168620780,5.55599218,109820.0,109810.0,0.18754015]
[1756168620986,5.98101467,109820.0,109810.0,0.00424738]
[1756168621212,6.06990432,109820.0,109810.0,0.00208738]
[1756168621419,5.67477102,109820.0,109810.0,8.738e-05]
[1756168621630,6.06788432,109820.0,109810.0,8.738e-05]
[1756168622036,6.06990432,109820.0,109810.0,8.738e-05]
[1756168622251,6.07295432,109820.0,109810.0,8.738e-05]
[1756168622494,6.10284351,109820.0,109810.0,0.00208738]
[1756168622702,6.10284351,109820.0,109810.0,0.00308738]
[1756168622909,6.10284351,109820.0,109810.0,0.00108738]
[1756168623118,6.08859127,109820.0,109810.0,0.00108738]
[1756168623347,6.17096726,109820.0,109810.0,0.00108738]
[1756168623562,5.57822477,109820.0,109810.0,0.00108738]
[1756168623800,6.14107807,109820.0,109810.0,0.00108738]
[1756168624007,5.71605558,109820.0,109810.0,0.00108738]
[1756168624217,6.14107807,109820.0,109810.0,0.00108738]
[1756168624432,6.17096726,109820.0,109810.0,8.738e-05]
[1756168624886,6.14107807,109820.0,109810.0,8.738e-05]
[1756168625325,6.17096726,109820.0,109810.0,8.738e-05]
[1756168625753,6.14155807,109820.0,109810.0,8.738e-05]
[1756168625957,6.15781181,109820.0,109810.0,8.738e-05]
[1756168626428,6.20515002,109820.0,109810.0,8.738e-05]
[1756168626642,6.23926329,109820.0,109810.0,8.738e-05]
[1756168626846,0.52216595,109790.0,109780.0,0.06157895]
[1756168627056,6.08673332,109790.0,109780.0,0.00014366]
[1756168627275,6.15056315,109790.0,109780.0,0.00014366]
[1756168627478,6.21819362,109790.0,109780.0,0.00014366]
[1756168627692,6.18531869,109790.0,109780.0,1e-08]
[1756168627902,6.39771717,109790.0,109780.0,1e-08]
[1756168628110,6.42760636,109790.0,109780.0,1e-08]
[1756168628765,6.42950172,109790.0,109780.0,1e-08]
[1756168628984,0.62204075,109760.0,109750.0,1e-08]
[1756168629190,6.4303848,109760.0,109750.0,1e-08]
[1756168629398,6.58345601,109760.0,109750.0,1e-08]
[1756168629821,6.59771835,109760.0,109750.0,1e-08]
[1756168630025,5.83737492,109760.0,109750.0,1e-08]
[1756168630276,6.35832213,109760.0,109750.0,1e-08]
[1756168630485,5.54352261,109760.0,109750.0,0.00216001]
[1756168630687,6.26759046,109760.0,109750.0,1e-08]
[1756168630897,6.35301645,109760.0,109750.0,1e-08]
[1756168631129,6.29298546,109760.0,109750.0,0.00216001]
[1756168631337,6.29298546,109760.0,109750.0,0.00316001]
[1756168631596,6.469667,109760.0,109750.0,1e-08]
[1756168631798,6.6437943,109760.0,109750.0,0.00200001]
[1756168632006,6.6437943,109760.0,109750.0,0.00600001]
[1756168632218,6.619667,109760.0,109750.0,0.00600001]
[1756168632435,6.42185781,109760.0,109750.0,0.00400001]
[1756168632644,6.12506546,109760.0,109750.0,0.00216001]
[1756168632875,6.29640546,109760.0,109750.0,1e-08]
[1756168633084,6.32934465,109760.0,109750.0,1e-08]
[1756168633291,5.27080014,109760.0,109750.0,0.00216001]
[1756168633508,5.92872412,109760.0,109750.0,0.00216001]
[1756168633708,5.76040412,109760.0,109750.0,0.00216001]
[1756168633917,5.91346178,109760.0,109750.0,1e-08]
[1756168634146,6.26173511,109760.0,109750.0,1e-08]
[1756168634763,6.28399103,109760.0,109750.0,0.00300001]
[1756168634976,6.39625621,109760.0,109750.0,0.00300001]
[1756168635445,5.73368652,109760.0,109750.0,0.00516001]
[1756168635731,6.26470295,109760.0,109750.0,1e-08]
[1756168635982,6.31379424,109760.0,109750.0,0.00200001]
[1756168636209,6.41043181,109760.0,109750.0,0.00300001]
[1756168637063,6.42788083,109760.0,109750.0,0.00100001]
[1756168637510,6.42788083,109760.0,109750.0,0.00600001]
[1756168637753,6.25964083,109760.0,109750.0,1e-08]
[1756168638038,6.42900083,109760.0,109750.0,0.00300001]
[1756168638255,6.42893661,109760.0,109750.0,0.00300001]
[1756168638470,6.42885661,109760.0,109750.0,0.00300001]
[1756168638779,6.42877661,109760.0,109750.0,0.00300001]
[1756168639288,6.3753684,109760.0,109750.0,0.00300001]
[1756168639510,6.40525759,109760.0,109750.0,0.00300001]
[1756168639736,6.41032759,109760.0,109750.0,0.00300001]
[1756168639972,6.41031655,109760.0,109750.0,0.00300001]
[1756168640387,6.38605549,109760.0,109750.0,0.00300001]
[1756168640613,6.38807549,109760.0,109750.0,0.00300001]
[1756168640824,6.10559031,109760.0,109750.0,0.00516001]
[1756168641034,6.26746149,109760.0,109750.0,0.00516001]
[1756168641259,6.26746149,109760.0,109750.0,0.00832001]
[1756168641260,5.72242698,109760.0,109750.0,0.00832001]
[1756168641677,5.21418698,109760.0,109750.0,0.00832001]
[1756168641921,5.38238698,109760.0,109750.0,0.00832001]
[1756168642122,5.7081254,109760.0,109750.0,0.00832001]
[1756168642348,6.25327991,109760.0,109750.0,0.00516001]
[1756168642551,6.23863424,109760.0,109750.0,0.00500001]
[1756168642759,6.23661424,109760.0,109750.0,0.00716001]
[1756168643400,5.52325973,109760.0,109750.0,0.01032001]
[1756168643617,5.69121973,109760.0,109750.0,0.01032001]
[1756168643826,5.18409434,109760.0,109750.0,0.19055235]
[1756168644063,6.07938459,109760.0,109750.0,0.00216001]
[1756168644263,6.08140459,109760.0,109750.0,0.00600001]
[1756168644474,6.20121343,109760.0,109750.0,0.00600001]
[1756168644685,6.3264911,109760.0,109750.0,0.00300001]
[1756168645115,6.34316807,109760.0,109750.0,0.00300001]
[1756168645533,6.34316807,109760.0,109750.0,1e-08]
[1756168645789,5.91931927,109760.0,109750.0,1e-08]
[1756168646008,5.97759531,109760.0,109750.0,1e-08]
[1756168646239,6.00172261,109760.0,109750.0,1e-08]
[1756168646449,6.01006426,109760.0,109750.0,1e-08]
[1756168646664,6.04223466,109760.0,109750.0,1e-08]
[1756168647306,0.52226556,109730.0,109720.0,0.00048]
[1756168647521,5.66225226,109730.0,109720.0,0.00048]
[1756168647727,5.66535226,109730.0,109720.0,0.00048]
[1756168647934,5.63040307,109730.0,109720.0,0.00261]
[1756168648146,5.65809914,109730.0,109720.0,0.00048]
[1756168648361,6.20325365,109730.0,109720.0,0.00048]
[1756168648565,6.17555758,109730.0,109720.0,0.00408904]
[1756168648782,6.21751814,109730.0,109720.0,0.00408904]
[1756168649001,6.30831153,109730.0,109720.0,0.00095904]
[1756168649216,6.17247578,109730.0,109720.0,0.00508904]
[1756168649527,6.18704834,109730.0,109720.0,0.00508904]
[1756168649764,6.18900834,109730.0,109720.0,0.00295904]
[1756168650021,6.22101187,109730.0,109720.0,0.00295904]
[1756168650253,6.21980441,109730.0,109720.0,0.00295904]
[1756168650497,6.25030323,109730.0,109720.0,0.00295904]
[1756168650766,6.43625117,109730.0,109720.0,0.00095904]
[1756168651012,5.58867484,109730.0,109720.0,0.00308904]
[1756168651269,6.18238434,109730.0,109720.0,0.00408904]
[1756168651511,6.28626935,109730.0,109720.0,0.00095904]
[1756168651751,5.56465395,109730.0,109720.0,0.00308904]
[1756168651974,6.16682789,109730.0,109720.0,0.00308904]
[1756168652180,6.18510109,109730.0,109720.0,0.00308904]
[1756168652406,6.18706109,109730.0,109720.0,0.00295904]
[1756168652612,6.1727966,109730.0,109720.0,0.00095904]
[1756168653734,6.17283083,109730.0,109720.0,0.00095904]
[1756168653942,6.17283083,109730.0,109720.0,0.00195904]
[1756168654179,6.17283083,109730.0,109720.0,0.00095904]
[1756168655075,6.17283083,109730.0,109720.0,0.00295904]
[1756168655290,6.33205287,109730.0,109720.0,0.00295904]
[1756168655542,6.33205287,109730.0,109720.0,0.00395904]
[1756168655762,5.74752773,109730.0,109720.0,0.00395904]
[1756168656031,6.03159179,109730.0,109720.0,0.00608904]
[1756168656253,6.23219582,109730.0,109720.0,0.00608904]
[1756168656479,6.2295063,109730.0,109720.0,0.00395904]
[1756168656692,6.21491272,109730.0,109720.0,0.00395904]
[1756168656926,6.25019819,109730.0,109720.0,0.00095904]
[1756168657182,0.64980325,109720.0,109710.0,0.0002]
[1756168657395,6.24227613,109720.0,109710.0,0.00028745]
[1756168657630,6.25654356,109720.0,109710.0,0.00028745]
[1756168657855,0.77212379,109710.0,109700.0,0.0006]
[1756168658096,6.32935133,109710.0,109700.0,0.0006]
[1756168658325,6.17935133,109710.0,109700.0,0.0006]
[1756168658549,6.40024454,109710.0,109700.0,0.0006]
[1756168658995,6.35198994,109710.0,109700.0,0.0006]
[1756168659448,6.20198994,109710.0,109700.0,0.0006]
[1756168660332,6.06130432,109710.0,109700.0,0.0058]
[1756168660555,6.06230432,109710.0,109700.0,0.00273]
[1756168660826,6.06526432,109710.0,109700.0,0.0006]
[1756168660997,6.06836432,109710.0,109700.0,0.0006]
[1756168661202,5.89442432,109710.0,109700.0,0.00273]
[1756168661402,6.06130432,109710.0,109700.0,0.0058]
[1756168661684,6.06448379,109710.0,109700.0,0.0088]
[1756168661918,6.06448379,109710.0,109700.0,0.00473]
[1756168662774,6.06644379,109710.0,109700.0,0.0026]
[1756168663185,6.09378832,109710.0,109700.0,0.0026]
[1756168663442,6.09378832,109710.0,109700.0,0.0036]
[1756168663645,6.2213094,109710.0,109700.0,0.0006]
[1756168663878,6.40365847,109710.0,109700.0,0.0006]
[1756168664105,6.40365847,109710.0,109700.0,0.0036]
[1756168664342,6.37941394,109710.0,109700.0,0.0016]
[1756168664559,6.37941394,109710.0,109700.0,0.0006]
[1756168664811,6.22941394,109710.0,109700.0,0.0016]
[1756168665023,6.38041394,109710.0,109700.0,0.0006]
[1756168665260,6.20271787,109710.0,109700.0,0.0006]
[1756168665484,6.25464665,109710.0,109700.0,0.0006]
[1756168665701,6.40464665,109710.0,109700.0,0.0006]
[1756168665923,6.36852888,109710.0,109700.0,0.0006]
[1756168666142,6.1415256,109710.0,109700.0,0.0006]
[1756168666368,6.10621653,109710.0,109700.0,0.00273]
[1756168666595,6.10621653,109710.0,109700.0,0.0006]
[1756168666596,6.19055233,109710.0,109700.0,0.0006]
[1756168666804,6.19055233,109710.0,109700.0,0.0016]
[1756168667024,6.23716993,109710.0,109700.0,0.0016]
[1756168667260,6.39026993,109710.0,109700.0,0.0016]
[1756168667469,6.24026993,109710.0,109700.0,0.0016]
[1756168667676,6.39026993,109710.0,109700.0,0.0016]
[1756168667884,6.44805284,109710.0,109680.0,0.00307]
[1756168668113,0.52236527,109670.0,109660.0,0.28165543]
[1756168668331,0.62964425,109670.0,109660.0,0.28387277]
[1756168668808,0.61165339,109670.0,109660.0,0.28387277]
[1756168669028,0.62079302,109670.0,109660.0,0.28387277]
[1756168669668,0.61237997,109670.0,109660.0,0.28387277]
[1756168670112,0.4300147,109670.0,109660.0,0.28694277]
[1756168670329,0.40581928,109670.0,109660.0,0.28694277]
[1756168670552,0.64942092,109670.0,109660.0,0.29194277]
[1756168670776,0.64942092,109670.0,109660.0,0.21029093]
[1756168671467,0.81758092,109670.0,109660.0,0.02791135]
[1756168671687,0.81758092,109670.0,109660.0,0.21329325]
[1756168672115,0.64942092,109670.0,109660.0,0.21329325]
[1756168672795,0.40581928,109670.0,109660.0,0.21329325]
[1756168673441,0.58818455,109670.0,109660.0,0.21329325]
[1756168673666,0.40581928,109670.0,109660.0,0.21329325]
[1756168674313,0.38268253,109670.0,109660.0,0.21329325]
[1756168674546,0.40576244,109670.0,109660.0,0.21329325]
[1756168675199,0.66939646,109670.0,109660.0,0.21329325]
[1756168675621,0.66939646,109670.0,109660.0,0.21022325]
[1756168676020,0.66939646,109670.0,109660.0,0.21343325]
[1756168676715,0.40576244,109670.0,109660.0,0.21343325]
[1756168677396,0.03734961,109670.0,109660.0,0.80720457]
[1756168677626,0.02307991,109670.0,109660.0,0.82465359]
[1756168678074,0.01678539,109670.0,109660.0,0.82465359]
[1756168678296,0.01678539,109670.0,109660.0,0.82165359]
[1756168678512,0.02307846,109670.0,109660.0,0.90852324]
[1756168678766,0.02307846,109670.0,109660.0,0.91152324]
[1756168679212,0.02307846,109670.0,109660.0,0.90852324]
[1756168679415,0.02307846,109670.0,109660.0,0.91252324]
[1756168679835,0.02307846,109670.0,109660.0,0.90752324]
[1756168680117,0.01678539,109670.0,109660.0,0.99840799]
[1756168680346,0.01678539,109670.0,109660.0,0.83048799]
[1756168680552,0.01678539,109670.0,109660.0,0.57255667]
[1756168680733,0.01678539,109670.0,109660.0,0.99840799]
[1756168681720,0.01678539,109670.0,109660.0,0.83048799]
[1756168682160,0.02308024,109670.0,109660.0,1.03918094]
[1756168682404,0.02308024,109670.0,109660.0,0.35852487]
[1756168682688,0.01678692,109670.0,109660.0,0.19580924]
[1756168682895,0.02308198,109670.0,109660.0,0.37814325]
[1756168683400,0.04242074,109670.0,109660.0,0.37814325]
[1756168683629,0.02308198,109670.0,109660.0,0.38135325]
[1756168683849,0.02308198,109670.0,109660.0,0.37335325]
[1756168684079,0.02308198,109670.0,109660.0,0.37535325]
[1756168684299,0.02308198,109670.0,109660.0,0.20622325]
[1756168684523,0.02308198,109670.0,109660.0,0.37414325]
[1756168684942,0.02308198,109670.0,109660.0,0.37214325]
[1756168685166,0.02308198,109670.0,109660.0,0.37514325]
[1756168685995,0.02308198,109670.0,109660.0,0.21043325]
[1756168686207,0.01678692,109670.0,109660.0,0.37831325]
[1756168686831,0.01678692,109670.0,109660.0,0.37631325]
[1756168687039,0.01678692,109670.0,109660.0,0.38031325]
[1756168687234,0.03105517,109670.0,109660.0,0.38031325]
[1756168687464,0.03105517,109670.0,109660.0,0.20543325]
[1756168687725,0.03105517,109670.0,109660.0,0.37531325]
[1756168687890,0.03105517,109670.0,109660.0,0.80316457]
[1756168688297,0.03105517,109670.0,109660.0,0.37410325]
[1756168688545,0.03105517,109670.0,109660.0,0.37408325]
[1756168688791,0.03105517,109670.0,109660.0,0.37729325]
[1756168689017,0.03107723,109670.0,109660.0,0.37729325]
[1756168689256,0.19446101,109690.0,109680.0,0.18234865]
[1756168689491,0.23066806,109690.0,109670.0,0.19997527]
[1756168689724,0.23066806,109690.0,109680.0,0.18234865]
[1756168690166,0.0483351,109690.0,109680.0,0.18234865]